bitfinex-derivatives/quotes_BTCF0:USTF0_20241109
["timestamp","ask_amount","ask_price","bid_price","bid_amount"]
[1731182726397,0.0061,76295.0,76294.0,0.065499]
[1731182726596,0.46156,76300.0,76299.0,0.065495]
[1731182726788,0.4608,76300.0,76299.0,0.065495]
[1731182727098,0.6563828,76300.0,76299.0,0.065495]
[1731182727291,0.5563828,76300.0,76299.0,0.065495]
[1731182730797,0.5563828,76300.0,76299.0,0.09714159]
[1731182737301,0.3608,76300.0,76299.0,0.09714159]
[1731182738505,0.35884,76300.0,76299.0,0.09714159]
[1731182739214,0.35751,76300.0,76299.0,0.09714159]
[1731182739606,0.0306,76314.0,76299.0,0.09714159]
[1731182739915,0.07328863,76304.0,76303.0,0.065491]
[1731182740208,0.26879122,76304.0,76303.0,0.065491]
[1731182744409,0.19550259,76304.0,76303.0,0.065491]
[1731182744906,0.19550259,76304.0,76300.0,0.07328863]
[1731182744907,0.19550118,76305.0,76304.0,0.065491]
[1731182745211,0.19550118,76305.0,76300.0,0.07328863]
[1731182745212,0.3934,76306.0,76305.0,0.06549]
[1731182745604,0.58954909,76306.0,76305.0,0.06549]
[1731182749210,0.65503809,76306.0,76301.0,0.065493]
[1731182749412,0.65503809,76306.0,76303.0,0.065491]
[1731182751217,0.07328863,76305.0,76303.0,0.065491]
[1731182751613,0.19563721,76304.0,76303.0,0.065491]
[1731182753620,0.55643721,76304.0,76303.0,0.065491]
[1731182756820,0.55643721,76304.0,76296.0,0.07328863]
[1731182757017,0.55643721,76304.0,76299.0,0.065495]
[1731182757716,0.62192821,76304.0,76296.0,0.07328863]
[1731182758024,0.62192821,76304.0,76300.0,0.065494]
[1731182758623,0.62192821,76304.0,76296.0,0.07328863]
[1731182758827,0.62192821,76304.0,76301.0,0.065493]
[1731182759518,0.62192821,76304.0,76294.0,0.03930439]
[1731182759519,0.55643721,76304.0,76294.0,0.03930439]
[1731182759724,0.0655,76294.0,76291.0,0.065501]
[1731182759923,0.065502,76291.0,76286.0,0.065506]
[1731182760219,0.3608,76288.0,76286.0,0.065506]
[1731182760531,0.19572494,76287.0,76286.0,0.065506]
[1731182763827,0.3608,76288.0,76286.0,0.11794497]
[1731182764120,0.3608,76288.0,76287.0,0.07328863]
[1731182764324,0.3608,76288.0,76287.0,0.10558863]
[1731182764723,0.071595,76300.0,76288.0,0.065504]
[1731182764918,0.065495,76300.0,76296.0,0.07328863]
[1731182765126,0.19680542,76299.0,76296.0,0.07328863]
[1731182769225,0.19680542,76299.0,76296.0,0.13878563]
[1731182770221,0.19680542,76299.0,76296.0,0.07328863]
[1731182770431,0.19680542,76299.0,76298.0,0.065496]
[1731182773931,0.19680542,76299.0,76298.0,0.10473933]
[1731182774130,0.19680542,76299.0,76298.0,0.065496]
[1731182778734,0.3608,76303.0,76302.0,0.065493]
[1731182778935,0.3608,76303.0,76302.0,0.13878163]
[1731182779329,0.3608,76303.0,76302.0,0.065493]
[1731182779531,0.3608,76303.0,76302.0,0.13878163]
[1731182783038,0.3608,76303.0,76302.0,0.065493]
[1731182783230,0.3608,76303.0,76302.0,0.13878163]
[1731182787138,0.3608,76303.0,76302.0,0.17068036]
[1731182788245,0.3608,76303.0,76302.0,0.09739173]
[1731182788747,0.3608,76303.0,76302.0,0.065493]
[1731182788940,0.62271708,76303.0,76302.0,0.065493]
[1731182789138,0.55722508,76303.0,76302.0,0.065493]
[1731182791650,0.58870014,76303.0,76302.0,0.065493]
[1731182793441,0.58870014,76303.0,76293.0,0.36152]
[1731182793634,0.065493,76302.0,76297.0,0.065497]
[1731182794042,0.19537275,76301.0,76297.0,0.065497]
[1731182794243,0.065496,76299.0,76297.0,0.065497]
[1731182794443,0.065496,76298.0,76297.0,0.065497]
[1731182794646,0.33415738,76298.0,76297.0,0.065497]
[1731182794846,0.13878463,76298.0,76297.0,0.065497]
[1731182795240,0.3344689,76298.0,76297.0,0.065497]
[1731182795640,0.2689729,76298.0,76288.0,0.03198031]
[1731182795841,0.3608,76292.0,76287.0,0.07328863]
[1731182796241,0.3608,76292.0,76291.0,0.065502]
[1731182796647,0.55775646,76292.0,76291.0,0.065502]
[1731182797048,0.55775646,76292.0,76279.0,0.0314]
[1731182797049,0.55775646,76292.0,76283.0,0.03923458]
[1731182797248,0.07328863,76289.0,76287.0,0.065505]
[1731182797651,0.19574505,76288.0,76287.0,0.065505]
[1731182798748,0.065503,76290.0,76287.0,0.065505]
[1731182798749,0.19747161,76289.0,76287.0,0.065505]
[1731182798958,0.065503,76290.0,76287.0,0.065505]
[1731182799154,0.065503,76290.0,76284.0,0.07328863]
[1731182799350,0.19671541,76289.0,76288.0,0.065505]
[1731182799657,0.55751541,76289.0,76288.0,0.065505]
[1731182805051,0.55751541,76289.0,76288.0,0.13879363]
[1731182811853,0.55751541,76289.0,76288.0,0.17800327]
[1731182812256,0.32802142,76289.0,76288.0,0.19108974]
[1731182812762,0.32802142,76289.0,76288.0,0.19107354]
[1731182813172,0.32802142,76289.0,76288.0,0.13879363]
[1731182813769,0.3608,76297.0,76296.0,0.065498]
[1731182814263,0.55836561,76297.0,76296.0,0.065498]
[1731182815358,0.55836561,76297.0,76296.0,0.13878663]
[1731182823870,0.3608,76297.0,76296.0,0.13878663]
[1731182824262,0.3608,76297.0,76296.0,0.20415676]
[1731182824461,0.3608,76297.0,76296.0,0.29809407]
[1731182824665,0.3608,76297.0,76296.0,0.29807645]
[1731182824976,0.3608,76297.0,76296.0,0.20415676]
[1731182825171,0.3608,76305.0,76296.0,0.13878663]
[1731182825373,0.3608,76305.0,76304.0,0.065491]
[1731182825875,0.55648747,76305.0,76304.0,0.065491]
[1731182826969,0.3608,76305.0,76304.0,0.065491]
[1731182827277,0.3608,76305.0,76304.0,0.11780596]
[1731182828966,0.3608,76305.0,76304.0,0.09668193]
[1731182829378,0.3608,76305.0,76304.0,0.16997056]
[1731182829577,0.43134,76316.0,76315.0,0.065481]
[1731182829777,0.4244,76316.0,76315.0,0.065481]
[1731182829976,0.62110746,76316.0,76315.0,0.065481]
[1731182833879,0.62110746,76316.0,76315.0,0.09783546]
[1731182834583,0.62110746,76316.0,76315.0,0.065481]
[1731182834779,0.69439609,76316.0,76315.0,0.065481]
[1731182835174,0.62110746,76316.0,76315.0,0.065481]
[1731182848491,0.69439609,76316.0,76315.0,0.065481]
[1731182849592,0.3608,76316.0,76315.0,0.13876963]
[1731182854895,0.3608,76316.0,76315.0,0.19108459]
[1731182855595,0.3608,76316.0,76315.0,0.13876963]
[1731182859088,0.3608,76316.0,76315.0,0.19113197]
[1731182864099,0.3608,76316.0,76315.0,0.13876963]
[1731182867402,0.3608,76316.0,76315.0,0.065481]
[1731182867707,0.3608,76316.0,76315.0,0.13876963]
[1731182870402,0.3608,76316.0,76315.0,0.065481]
[1731182870802,0.3608,76316.0,76315.0,0.13876963]
[1731182872103,0.3608,76320.0,76315.0,0.07328863]
[1731182872299,0.3608,76320.0,76317.0,0.06548]
[1731182872505,0.19734474,76319.0,76317.0,0.06548]
[1731182874306,0.19734474,76319.0,76318.0,0.03926733]
[1731182875317,0.19734474,76319.0,76317.0,0.09731394]
[1731182877611,0.26282274,76319.0,76317.0,0.09731394]
[1731182878107,0.3608,76318.0,76317.0,0.09731394]
[1731182878412,0.62265449,76318.0,76317.0,0.09731394]
[1731182879305,0.62265449,76318.0,76317.0,0.14967628]
[1731182880013,0.62265449,76318.0,76317.0,0.14972463]
[1731182880210,0.62265449,76318.0,76317.0,0.09731394]
[1731182880415,0.62265449,76318.0,76317.0,0.14972478]
[1731182880712,0.62265449,76318.0,76317.0,0.09731394]
[1731182881211,0.55717549,76318.0,76317.0,0.09731394]
[1731182901025,0.19637549,76318.0,76317.0,0.09731394]
[1731182901426,0.19656793,76320.0,76317.0,0.03183394]
[1731182901621,0.3608,76321.0,76320.0,0.065477]
[1731182902027,0.55736793,76321.0,76320.0,0.065477]
[1731182909235,0.065479,76318.0,76316.0,0.06548]
[1731182909440,0.07328863,76317.0,76316.0,0.06548]
[1731182909640,0.26945777,76317.0,76316.0,0.06548]
[1731182909833,0.33493777,76317.0,76316.0,0.06548]
[1731182910935,0.065485,76312.0,76311.0,0.065485]
[1731182911134,0.49957363,76312.0,76311.0,0.065485]
[1731182911342,0.69642149,76312.0,76311.0,0.065485]
[1731182912635,0.63093649,76312.0,76310.0,0.05240221]
[1731182912841,0.27761363,76311.0,76308.0,0.0393021]
[1731182913037,0.43408863,76309.0,76308.0,0.03930436]
[1731182913346,0.43408863,76309.0,76302.0,0.03926264]
[1731182913347,0.065492,76303.0,76302.0,0.03926264]
[1731182913544,0.065492,76303.0,76296.0,0.065497]
[1731182913545,0.065494,76300.0,76299.0,0.03926264]
[1731182913850,0.69499687,76300.0,76299.0,0.03926264]
[1731182914641,0.065495,76299.0,76298.0,0.03926264]
[1731182914940,0.26334699,76299.0,76298.0,0.03926264]
[1731182915137,0.065497,76297.0,76294.0,0.03926264]
[1731182915336,0.19785199,76299.0,76294.0,0.03926264]
[1731182915337,0.07328863,76295.0,76294.0,0.03926264]
[1731182915534,0.07328863,76295.0,76293.0,0.0655]
[1731182915535,0.13878763,76295.0,76293.0,0.0655]
[1731182915738,0.33646888,76295.0,76293.0,0.0655]
[1731182917246,0.0655,76293.0,76289.0,0.03926264]
[1731182917439,0.3608,76292.0,76288.0,0.10476764]
[1731182917645,0.55755248,76292.0,76288.0,0.03926264]
[1731182917841,0.55755248,76292.0,76289.0,0.065504]
[1731182918247,0.07328863,76290.0,76289.0,0.065504]
[1731182918551,0.27012533,76290.0,76289.0,0.065504]
[1731182920243,0.1968367,76290.0,76289.0,0.065504]
[1731182920640,0.19651191,76291.0,76290.0,0.065503]
[1731182920842,0.3608,76292.0,76291.0,0.065502]
[1731182921237,0.55731191,76292.0,76291.0,0.065502]
[1731182924651,0.19651191,76292.0,76291.0,0.065502]
[1731182925048,0.3608,76297.0,76290.0,0.07328863]
[1731182925049,0.19570577,76296.0,76290.0,0.14657726]
[1731182925252,0.3616,76297.0,76295.0,0.07328863]
[1731182925549,0.3608,76297.0,76296.0,0.065498]
[1731182925940,0.55869046,76297.0,76296.0,0.065498]
[1731182927453,0.55869046,76297.0,76296.0,0.10476064]
[1731182929048,0.19789046,76297.0,76296.0,0.065498]
[1731182929453,0.19539058,76302.0,76301.0,0.065493]
[1731182929655,0.10724,76303.0,76297.0,0.03914938]
[1731182929846,0.10724,76303.0,76302.0,0.065493]
[1731182930153,0.30263058,76303.0,76302.0,0.065493]
[1731182930750,0.19539058,76303.0,76302.0,0.13878163]
[1731182931150,0.19771018,76305.0,76304.0,0.065491]
[1731182931345,0.3608,76306.0,76305.0,0.06549]
[1731182931754,0.55862445,76306.0,76305.0,0.06549]
[1731182931947,0.0061,76312.0,76305.0,0.13877863]
[1731182932151,0.3608,76314.0,76313.0,0.065483]
[1731182932656,0.55667291,76314.0,76313.0,0.065483]
[1731182932850,0.55667291,76314.0,76313.0,0.1046394]
[1731182933248,0.55667291,76314.0,76313.0,0.065483]
[1731182933550,0.55667291,76314.0,76313.0,0.10463893]
[1731182933951,0.55667291,76314.0,76313.0,0.065483]
[1731182934752,0.19587291,76314.0,76313.0,0.065483]
[1731182935855,0.3917,76321.0,76320.0,0.065477]
[1731182936356,0.58695841,76321.0,76320.0,0.065477]
[1731182936549,0.55605841,76321.0,76320.0,0.065477]
[1731182943162,0.19525841,76321.0,76320.0,0.065477]
[1731182943355,0.55605841,76321.0,76320.0,0.065477]
[1731182943558,0.3608,76321.0,76320.0,0.065477]
[1731182943862,0.55772138,76321.0,76320.0,0.065477]
[1731182945064,0.19692138,76321.0,76320.0,0.065477]
[1731182945266,0.55772138,76321.0,76320.0,0.065477]
[1731182945470,0.3608,76321.0,76320.0,0.065477]
[1731182945766,0.5586251,76321.0,76320.0,0.065477]
[1731182953768,0.5586251,76321.0,76320.0,0.10463277]
[1731182954865,0.5586251,76321.0,76320.0,0.065477]
[1731182955070,0.5586251,76321.0,76320.0,0.10464552]
[1731182955271,0.5586251,76321.0,76320.0,0.065477]
[1731182958970,0.1978251,76321.0,76320.0,0.065477]
[1731182959375,0.19552371,76324.0,76323.0,0.065475]
[1731182959676,0.36156,76325.0,76324.0,0.065474]
[1731182959879,0.3608,76325.0,76324.0,0.065474]
[1731182960069,0.5583383,76325.0,76324.0,0.065474]
[1731182964572,0.5583383,76325.0,76324.0,0.11787621]
[1731182964780,0.5583383,76325.0,76324.0,0.065474]
[1731182965167,0.5583383,76325.0,76324.0,0.11787621]
[1731182965568,0.5583383,76325.0,76324.0,0.065474]
[1731182966970,0.5583383,76325.0,76324.0,0.11787621]
[1731182967872,0.5583383,76325.0,76324.0,0.065474]
[1731182968072,0.5583383,76325.0,76324.0,0.1178826]
[1731182968881,0.5583383,76325.0,76324.0,0.065474]
[1731182969474,0.5583383,76325.0,76324.0,0.11787916]
[1731182971580,0.5583383,76325.0,76324.0,0.065474]
[1731182978084,0.5583383,76325.0,76324.0,0.10477761]
[1731182979288,0.5583383,76325.0,76324.0,0.065474]
[1731182979484,0.1975383,76325.0,76324.0,0.065474]
[1731182979883,0.19571509,76328.0,76327.0,0.065471]
[1731182980077,0.031,76329.0,76326.0,0.07328863]
[1731182980286,0.031,76329.0,76328.0,0.11785785]
[1731182980487,0.031,76329.0,76328.0,0.06547]
[1731182980687,0.22874292,76329.0,76328.0,0.06547]
[1731182980992,0.22874292,76329.0,76328.0,0.11785785]
[1731182981785,0.22874292,76329.0,76328.0,0.06547]
[1731182985185,0.22874292,76329.0,76328.0,0.13875863]
[1731182986488,0.22874292,76329.0,76328.0,0.1780371]
[1731182986690,0.22874292,76329.0,76328.0,0.13875863]
[1731182986989,0.22874292,76329.0,76328.0,0.17803706]
[1731182987495,0.22874292,76329.0,76328.0,0.13875863]
[1731182989499,0.22874292,76329.0,76328.0,0.19114648]
[1731182990394,0.19774292,76329.0,76328.0,0.19114648]
[1731182990794,0.19621523,76332.0,76328.0,0.19114648]
[1731182991097,0.033,76333.0,76332.0,0.065467]
[1731182991497,0.22921523,76333.0,76332.0,0.065467]
[1731182992492,0.22921523,76333.0,76332.0,0.10473976]
[1731182992895,0.22921523,76333.0,76332.0,0.065467]
[1731182994191,0.22921523,76333.0,76332.0,0.10473976]
[1731182994698,0.22921523,76333.0,76332.0,0.065467]
[1731182997098,0.19621523,76333.0,76332.0,0.13875563]
[1731182997802,0.19621523,76333.0,76332.0,0.17802839]
[1731182998007,0.19621523,76333.0,76332.0,0.13875563]
[1731183008218,0.19621523,76333.0,76332.0,0.16889267]
[1731183012611,0.19621523,76333.0,76332.0,0.20812005]
[1731183014821,0.19621523,76333.0,76332.0,0.16889267]
[1731183015126,0.19621523,76333.0,76332.0,0.20812005]
[1731183015715,0.19621523,76333.0,76332.0,0.16889267]
[1731183017326,0.19621523,76333.0,76332.0,0.26113183]
[1731183017624,0.19621523,76333.0,76332.0,0.32653389]
[1731183018027,0.19621523,76333.0,76332.0,0.26113183]
[1731183021825,0.19621523,76333.0,76332.0,0.2611395]
[1731183024620,0.19621523,76333.0,76332.0,0.16889267]
[1731183026825,0.19621523,76333.0,76332.0,0.09560404]
[1731183027030,0.19621523,76333.0,76332.0,0.16889267]
[1731183031627,0.19621523,76333.0,76332.0,0.33963318]
[1731183032726,0.19621523,76333.0,76332.0,0.26634455]
[1731183033029,0.19621523,76333.0,76332.0,0.26118902]
[1731183035831,0.19621523,76333.0,76332.0,0.27690043]
[1731183036233,0.19621523,76333.0,76332.0,0.29261183]
[1731183037131,0.19621523,76333.0,76332.0,0.27690042]
[1731183037429,0.19621523,76333.0,76332.0,0.26118902]
[1731183037633,0.19621523,76333.0,76332.0,0.2768647]
[1731183041035,0.19621523,76333.0,76332.0,0.26118902]
[1731183046139,0.19621523,76333.0,76332.0,0.33963318]
[1731183046635,0.19621523,76333.0,76332.0,0.26114112]
[1731183046825,0.19621523,76333.0,76332.0,0.16889267]
[1731183048338,0.19621523,76333.0,76332.0,0.1847559]
[1731183050045,0.19621523,76333.0,76332.0,0.18476117]
[1731183050238,0.19621523,76333.0,76332.0,0.20062967]
[1731183050633,0.3669,76343.0,76342.0,0.065458]
[1731183050838,0.3608,76343.0,76342.0,0.13874663]
[1731183051143,0.0319,76347.0,76346.0,0.065455]
[1731183051346,0.0319,76347.0,76346.0,0.10474774]
[1731183051546,0.22816592,76347.0,76346.0,0.10474774]
[1731183051741,0.22816592,76347.0,76346.0,0.065455]
[1731183058246,0.30145455,76347.0,76346.0,0.11781883]
[1731183059038,0.30145455,76347.0,76346.0,0.065455]
[1731183060041,0.22816592,76347.0,76346.0,0.065455]
[1731183060247,0.30145455,76347.0,76346.0,0.065455]
[1731183061951,0.22816592,76347.0,76346.0,0.065455]
[1731183062139,0.30145455,76347.0,76346.0,0.065455]
[1731183064845,0.22816592,76347.0,76346.0,0.065455]
[1731183065043,0.30145455,76347.0,76346.0,0.065455]
[1731183066047,0.22816592,76347.0,76346.0,0.065455]
[1731183066248,0.30145455,76347.0,76346.0,0.065455]
[1731183067342,0.22816592,76347.0,76346.0,0.065455]
[1731183067543,0.19626592,76347.0,76346.0,0.065455]
[1731183067844,0.10624,76351.0,76346.0,0.065455]
[1731183067845,0.19692558,76350.0,76346.0,0.065455]
[1731183068151,0.10624,76351.0,76349.0,0.065452]
[1731183068448,0.10624,76351.0,76350.0,0.065451]
[1731183068841,0.30316558,76351.0,76350.0,0.065451]
[1731183069742,0.30316558,76351.0,76350.0,0.10472356]
[1731183070147,0.37645421,76351.0,76350.0,0.10472356]
[1731183071045,0.37645421,76351.0,76350.0,0.065451]
[1731183071251,0.27021421,76351.0,76350.0,0.10471902]
[1731183072548,0.27021421,76351.0,76350.0,0.065451]
[1731183072851,0.27021421,76351.0,76350.0,0.10471416]
[1731183074251,0.27021421,76351.0,76350.0,0.065451]
[1731183074958,0.19692558,76351.0,76350.0,0.065451]
[1731183075146,0.27021421,76351.0,76350.0,0.065451]
[1731183083963,0.63101421,76351.0,76350.0,0.065451]
[1731183085162,0.55772558,76351.0,76350.0,0.065451]
[1731183091968,0.55772558,76351.0,76350.0,0.11781483]
[1731183094768,0.63101421,76351.0,76350.0,0.065451]
[1731183095570,0.55772558,76351.0,76350.0,0.065451]
[1731183098363,0.55772558,76351.0,76350.0,0.09558404]
[1731183099865,0.55772558,76351.0,76350.0,0.13486982]
[1731183102155,0.19692558,76351.0,76350.0,0.13486982]
[1731183102461,0.19551008,76357.0,76350.0,0.09558404]
[1731183102768,0.07328863,76358.0,76357.0,0.065445]
[1731183103068,0.07328863,76358.0,76351.0,0.03928235]
[1731183103069,0.19535512,76358.0,76351.0,0.03928235]
[1731183103266,0.07328863,76356.0,76350.0,0.13486639]
[1731183103468,0.07328863,76356.0,76355.0,0.065447]
[1731183103867,0.26864375,76356.0,76355.0,0.065447]
[1731183105164,0.19535512,76356.0,76355.0,0.065447]
[1731183105564,0.19773248,76358.0,76357.0,0.065445]
[1731183105759,0.07328863,76359.0,76351.0,0.11783204]
[1731183105972,0.07328863,76359.0,76358.0,0.065445]
[1731183106174,0.07328863,76359.0,76358.0,0.10471657]
[1731183106367,0.26956155,76359.0,76358.0,0.10471657]
[1731183106673,0.26956155,76359.0,76358.0,0.065445]
[1731183107073,0.26956155,76359.0,76358.0,0.11782604]
[1731183107372,0.26956155,76359.0,76358.0,0.065445]
[1731183110364,0.19627292,76359.0,76358.0,0.065445]
[1731183110565,0.26956155,76359.0,76358.0,0.065445]
[1731183111268,0.26956155,76359.0,76358.0,0.09780508]
[1731183114463,0.26956155,76359.0,76358.0,0.13706384]
[1731183114862,0.26956155,76359.0,76358.0,0.09780508]
[1731183125281,0.26956155,76359.0,76358.0,0.065445]
[1731183125470,0.26956155,76359.0,76358.0,0.10471558]
[1731183126277,0.26956155,76359.0,76358.0,0.10471641]
[1731183126473,0.19627292,76359.0,76358.0,0.1047161]
[1731183126679,0.26956155,76359.0,76358.0,0.065445]
[1731183129687,0.26956155,76359.0,76358.0,0.10472584]
[1731183129981,0.26956155,76359.0,76358.0,0.065445]
[1731183130383,0.26956155,76359.0,76358.0,0.1047268]
[1731183130770,0.26956155,76359.0,76358.0,0.10473494]
[1731183133192,0.26956155,76359.0,76358.0,0.065445]
[1731183137084,0.29484861,76359.0,76358.0,0.065445]
[1731183139995,0.26956155,76359.0,76358.0,0.065445]
[1731183140499,0.29484844,76359.0,76358.0,0.065445]
[1731183141396,0.26956155,76359.0,76358.0,0.065445]
[1731183143096,0.29484856,76359.0,76358.0,0.065445]
[1731183143893,0.29484881,76359.0,76358.0,0.065445]
[1731183144395,0.26956155,76359.0,76358.0,0.065445]
[1731183144999,0.26956155,76359.0,76358.0,0.11782604]
[1731183149691,0.26956155,76359.0,76358.0,0.065445]
[1731183149895,0.26956155,76359.0,76358.0,0.11783161]
[1731183150189,0.26956155,76359.0,76358.0,0.065445]
[1731183150810,0.19627292,76359.0,76358.0,0.065445]
[1731183150999,0.19627292,76359.0,76358.0,0.13873363]
[1731183151897,0.26956155,76359.0,76358.0,0.065445]
[1731183154512,0.19627292,76359.0,76358.0,0.065445]
[1731183158208,0.19627292,76359.0,76358.0,0.13873363]
[1731183164408,0.19737196,76362.0,76359.0,0.065444]
[1731183164710,0.19737196,76362.0,76358.0,0.13873363]
[1731183164711,0.3608,76363.0,76362.0,0.065441]
[1731183165208,0.55817196,76363.0,76362.0,0.13872963]
[1731183166314,0.19737196,76363.0,76362.0,0.13872963]
[1731183166611,0.19662088,76370.0,76363.0,0.06544]
[1731183166813,0.19662088,76370.0,76367.0,0.07328863]
[1731183167015,0.3608,76372.0,76371.0,0.065433]
[1731183167510,0.55724785,76372.0,76371.0,0.065433]
[1731183168012,0.55724785,76372.0,76371.0,0.10466934]
[1731183168609,0.55724785,76372.0,76371.0,0.065433]
[1731183172018,0.55724785,76372.0,76371.0,0.10464417]
[1731183173824,0.55724785,76372.0,76371.0,0.136591]
[1731183174121,0.55724785,76372.0,76371.0,0.09737983]
[1731183180920,0.55724785,76372.0,76371.0,0.17066846]
[1731183180921,0.19644785,76372.0,76371.0,0.17066846]
[1731183181221,0.07328863,76377.0,76371.0,0.17066846]
[1731183181222,0.19577523,76376.0,76371.0,0.17066846]
[1731183181418,0.19577523,76376.0,76375.0,0.06543]
[1731183181623,0.19577523,76372.0,76371.0,0.17066846]
[1731183181925,0.19577523,76376.0,76375.0,0.06543]
[1731183182222,0.10532,76378.0,76377.0,0.065428]
[1731183182421,0.07328863,76378.0,76377.0,0.065428]
[1731183182623,0.27071366,76378.0,76377.0,0.065428]
[1731183184225,0.19742503,76378.0,76377.0,0.065428]
[1731183184719,0.0061,76385.0,76384.0,0.065422]
[1731183184922,0.3608,76386.0,76385.0,0.065421]
[1731183185313,0.55661635,76386.0,76385.0,0.065421]
[1731183188217,0.55661635,76386.0,76385.0,0.09683859]
[1731183190223,0.19581635,76386.0,76385.0,0.09683859]
[1731183190628,0.19700955,76388.0,76387.0,0.06542]
[1731183190824,0.3608,76395.0,76390.0,0.065417]
[1731183190825,0.19700955,76391.0,76390.0,0.065417]
[1731183191122,0.19700955,76393.0,76387.0,0.07328863]
[1731183191123,0.19700955,76388.0,76387.0,0.13870863]
[1731183191530,0.19579955,76391.0,76387.0,0.13870863]
[1731183191730,0.43484863,76395.0,76387.0,0.13870863]
[1731183191731,0.19579955,76388.0,76387.0,0.13870863]
[1731183191933,0.19579955,76393.0,76387.0,0.13870863]
[1731183192232,0.19579955,76391.0,76389.0,0.065418]
[1731183192426,0.43484863,76395.0,76394.0,0.065414]
[1731183192733,0.5582567,76395.0,76394.0,0.065414]
[1731183192929,0.5582567,76395.0,76394.0,0.13870263]
[1731183194232,0.1,76400.0,76394.0,0.065414]
[1731183194528,0.1,76400.0,76399.0,0.13869763]
[1731183201237,0.1,76400.0,76399.0,0.065409]
[1731183202337,0.29688132,76400.0,76399.0,0.065409]
[1731183202938,0.33008132,76400.0,76399.0,0.065409]
[1731183203442,0.36258132,76400.0,76399.0,0.065409]
[1731183203942,0.42799032,76400.0,76399.0,0.065409]
[1731183207639,0.36258132,76400.0,76399.0,0.065409]
[1731183209343,0.065418,76389.0,76388.0,0.00068]
[1731183209543,0.43408863,76389.0,76383.0,0.065423]
[1731183209740,0.07328863,76384.0,76383.0,0.065423]
[1731183210048,0.33585525,76384.0,76383.0,0.065423]
[1731183212844,0.27043325,76384.0,76383.0,0.065423]
[1731183214048,0.19714462,76384.0,76383.0,0.065423]
[1731183214450,0.19713459,76386.0,76384.0,0.065422]
[1731183214642,0.3908,76387.0,76382.0,0.05217403]
[1731183214844,0.3908,76387.0,76386.0,0.10458257]
[1731183215351,0.58793459,76387.0,76386.0,0.10458257]
[1731183216345,0.58793459,76387.0,76386.0,0.065421]
[1731183219455,0.65335459,76387.0,76386.0,0.065421]
[1731183219856,0.68565459,76387.0,76386.0,0.065421]
[1731183220253,0.68565459,76387.0,76386.0,0.1045901]
[1731183225262,0.58793459,76387.0,76386.0,0.1045901]
[1731183226558,0.55793459,76387.0,76386.0,0.1045901]
[1731183227266,0.0061,76395.0,76394.0,0.065414]
[1731183227566,0.3608,76399.0,76386.0,0.065421]
[1731183227567,0.3608,76399.0,76398.0,0.06541]
[1731183227956,0.55730414,76399.0,76398.0,0.06541]
[1731183229464,0.55730414,76399.0,76398.0,0.09668511]
[1731183235575,0.63059277,76399.0,76398.0,0.09668511]
[1731183236970,0.55730414,76399.0,76398.0,0.09668511]
[1731183237272,0.55730414,76399.0,76398.0,0.13585008]
[1731183237477,0.55730414,76399.0,76398.0,0.09668511]
[1731183238084,0.1,76400.0,76399.0,0.065409]
[1731183238265,0.1,76400.0,76399.0,0.13869763]
[1731183238863,0.1,76400.0,76399.0,0.17059763]
[1731183239267,0.1,76400.0,76399.0,0.2097868]
[1731183239478,0.1,76400.0,76399.0,0.17059763]
[1731183240970,0.1,76400.0,76399.0,0.20978283]
[1731183241481,0.1,76400.0,76399.0,0.2097826]
[1731183241971,0.1,76400.0,76399.0,0.17059763]
[1731183243681,0.1,76400.0,76399.0,0.097309]
[1731183248782,0.29512633,76400.0,76399.0,0.065409]
[1731183250586,0.29512633,76400.0,76390.0,0.03011352]
[1731183250785,0.07328863,76391.0,76390.0,0.09553052]
[1731183251087,0.27049845,76391.0,76390.0,0.09553052]
[1731183257685,0.27049845,76391.0,76390.0,0.065417]
[1731183258283,0.80914708,76391.0,76390.0,0.03922997]
[1731183258487,0.065421,76385.0,76381.0,0.05230112]
[1731183258789,0.065426,76380.0,76378.0,0.05230112]
[1731183259093,0.065427,76378.0,76377.0,0.05230112]
[1731183259385,0.3360641,76378.0,76377.0,0.05230112]
[1731183259589,0.06543,76375.0,76371.0,0.05230112]
[1731183259780,0.13872163,76372.0,76368.0,0.05230112]
[1731183259984,0.065434,76370.0,76368.0,0.05230112]
[1731183260286,0.26204263,76369.0,76366.0,0.05230112]
[1731183260602,0.43408863,76367.0,76366.0,0.05230112]
[1731183260778,0.43408863,76367.0,76362.0,0.05230112]
[1731183260982,0.07328863,76363.0,76360.0,0.11774312]
[1731183261183,0.07328863,76363.0,76360.0,0.065442]
[1731183261390,0.1975078,76362.0,76360.0,0.065442]
[1731183261580,0.2629488,76362.0,76355.0,0.065447]
[1731183261785,0.07328863,76356.0,76355.0,0.065447]
[1731183262191,0.26884849,76356.0,76355.0,0.065447]
[1731183263092,0.26884849,76356.0,76354.0,0.03088912]
[1731183263296,0.26884849,76356.0,76353.0,0.3608]
[1731183264596,0.26884849,76356.0,76352.0,0.0307]
[1731183264798,0.26884849,76356.0,76344.0,0.39466]
[1731183264799,0.065447,76355.0,76344.0,0.39466]
[1731183265098,0.07328863,76348.0,76344.0,0.3939]
[1731183265284,0.07328863,76348.0,76344.0,0.3608]
[1731183265484,0.19539737,76347.0,76344.0,0.3608]
[1731183265694,0.19539737,76347.0,76343.0,0.0301143]
[1731183265897,0.07328863,76344.0,76343.0,0.0301143]
[1731183266199,0.27010102,76344.0,76343.0,0.0301143]
[1731183270394,0.27010102,76344.0,76334.0,0.065465]
[1731183270597,0.07328863,76335.0,76334.0,0.065465]
[1731183274600,0.02742944,76335.0,76334.0,0.065465]
[1731183275797,0.3608,76338.0,76337.0,0.065463]
[1731183276002,0.43408863,76338.0,76337.0,0.065463]
[1731183276191,0.62980647,76338.0,76337.0,0.065463]
[1731183279090,0.26900647,76338.0,76337.0,0.065463]
[1731183279703,0.0061,76341.0,76337.0,0.3608]
[1731183280005,0.0061,76346.0,76345.0,0.065456]
[1731183280304,0.07328863,76349.0,76347.0,0.065454]
[1731183280492,0.25117726,76350.0,76337.0,0.3608]
[1731183280694,0.07328863,76343.0,76342.0,0.065458]
[1731183285606,0.07328863,76343.0,76342.0,0.11775912]
[1731183286598,0.07328863,76343.0,76342.0,0.09699913]
[1731183287801,0.07328863,76343.0,76342.0,0.18786872]
[1731183288604,0.07328863,76343.0,76342.0,0.20226914]
[1731183289206,0.07328863,76343.0,76342.0,0.18786872]
[1731183289597,0.07328863,76343.0,76342.0,0.20226995]
[1731183290998,0.07328863,76343.0,76342.0,0.29632311]